fUST/lending_fUST_20260109
["ID","MTS","AMOUNT","RATE_DAILY","PERIOD"]
[401076558,1767906640724,-419.6,0.00022544,2]
[401076560,1767906640733,-522.50769838,0.00023057,2]
[401076562,1767906640743,-1005.37,0.000231,14]
[401076564,1767906640753,-2451.57074059,0.0002329,2]
[401076566,1767906640762,-204.0,0.00023342,9]
[401076568,1767906640771,-419.6,0.0002373,2]
[401076570,1767906640780,-2451.57074059,0.00023741,2]
[401076572,1767906640790,-2451.57074059,0.00023857,2]
[401076574,1767906640799,-170.598297,0.00024201,2]
[401076576,1767906640808,-2451.57074059,0.00024357,2]
[401076578,1767906640818,-2451.57074059,0.00024407,2]
[401076580,1767906640827,-1000.0,0.00024659,10]
[401076582,1767906640837,-1000.0,0.00024659,10]
[401076584,1767906640847,-579.0,0.00024659,10]
[401076586,1767906640856,-518.09,0.000248,7]
[401076588,1767906640865,-2451.57074059,0.00024807,2]
[401076590,1767906640874,-637582.872583,0.000249,2]
[401076592,1767906640883,-419.6,0.00024916,2]
[401076594,1767906640892,-306.78033091,0.00025,2]
[401076596,1767906640901,-2451.57074059,0.00025053,2]
[401076598,1767906640911,-567.72471074,0.00025057,2]
[401076600,1767906640920,-18863.66,0.000252,2]
[401076602,1767906640929,-250.0,0.00025205,2]
[401076604,1767906640939,-2451.57074059,0.00025268,2]
[401076606,1767906640948,-2451.57074059,0.00025482,2]
[401076608,1767906640958,-155.0,0.00025534,17]
[401076610,1767906640967,-5000.0,0.00025663,2]
[401076612,1767906640976,-350.0,0.00025753,2]
[401076614,1767906640986,-500.0,0.00025754,2]
[401076616,1767906640995,-235.39284337,0.00025754,2]
[401076618,1767906641004,-1005.37,0.000258,14]
[401076620,1767906641014,-164.0,0.000258,7]
[401076622,1767906641023,-162.94,0.000258,7]
[401076624,1767906641032,-268.0,0.00025891,2]
[401076626,1767906641042,-500.0,0.00025891,2]
[401076628,1767906641051,-2451.57074059,0.00025976,2]
[401076630,1767906641060,-220.19624984,0.00026028,2]
[401076632,1767906641070,-2451.57074059,0.0002609,2]
[401076634,1767906641079,-419.6,0.00026102,2]
[401076636,1767906641089,-4798.88647328,0.00026164,2]
[401076638,1767906641099,-455.55,0.000262,2]
[401076640,1767906641108,-518.09,0.000262,7]
[401076642,1767906641117,-450.0,0.00026301,2]
[401076644,1767906641126,-2451.57074059,0.00026366,2]
[401076646,1767906641135,-250.0,0.00026439,2]
[401076648,1767906641144,-250.0,0.00026439,2]
[401076650,1767906641154,-900.0,0.00026487,7]
[401076652,1767906641164,-900.0,0.00026528,7]
[401076654,1767906641174,-191.74937888,0.00026613,2]
[401076656,1767906641183,-2451.57074059,0.00026649,2]
[401076658,1767906641192,-900.0,0.00026662,7]
[401076660,1767906641206,-900.8992001,0.0002677,7]
[401076662,1767906641215,-18863.66,0.000268,2]
[401076664,1767906641224,-550.0,0.00026849,2]
[401076666,1767906641233,-900.0,0.0002697,7]
[401076668,1767906641242,-160.18626186,0.00027019,2]
[401076670,1767906641251,-612.9417231,0.00027057,2]
[401076672,1767906641260,-900.0,0.00027064,7]
[401076674,1767906641269,-2451.57074059,0.00027096,2]
[401076676,1767906641278,-1000.0,0.00027125,30]
[401076678,1767906641287,-1000.0,0.00027125,30]
[401076680,1767906641297,-1000.0,0.00027125,30]
[401076682,1767906641306,-174.0,0.00027178,23]
[401076684,1767906641315,-1005.37,0.000272,14]
[401076686,1767906641324,-419.6,0.00027289,2]
[401076688,1767906641333,-160.0,0.00027309,3]
[401076690,1767906641342,-2451.57074059,0.00027392,2]
[401076692,1767906641351,-1803.46,0.00027397,2]
[401076694,1767906641360,-223.85462441,0.00027397,2]
[401076696,1767906641370,-650.0,0.00027397,5]
[401076698,1767906641379,-300.0,0.00027397,5]
[401076700,1767906641389,-500.0,0.00027397,5]
[401076702,1767906641403,-230.27,0.00027399,2]
[401076704,1767906641413,-518.09,0.000274,7]
[401076706,1767906641422,-4798.88647328,0.00027527,2]
[401076708,1767906641431,-500.0,0.00027563,7]
[401076710,1767906641441,-151.0,0.00027618,7]
[401076712,1767906641451,-172.705914,0.00027618,7]
[401076714,1767906641460,-172.705914,0.00027618,7]
[401076716,1767906641469,-172.705914,0.00027618,7]
[401076718,1767906641480,-172.705914,0.00027618,7]
[401076720,1767906641491,-289.370538,0.00027618,7]
[401076722,1767906641499,-289.370538,0.00027618,7]
[401076724,1767906641509,-289.370538,0.00027618,7]
[401076726,1767906641518,-289.370538,0.00027618,7]
[401076728,1767906641527,-522.121584,0.00027618,7]
[401076730,1767906641536,-522.121584,0.00027618,7]
[401076732,1767906641546,-151.0,0.00027618,7]
[401076734,1767906641555,-522.121584,0.00027618,7]
[401076736,1767906641564,-151.0,0.00027618,7]
[401076738,1767906641573,-522.121584,0.00027618,7]
[401076740,1767906641582,-151.0,0.00027618,7]
[401076742,1767906641592,-204.572095,0.00027618,7]
[401076744,1767906641602,-204.572095,0.00027618,7]
[401076746,1767906641611,-204.572095,0.00027618,7]
[401076748,1767906641620,-204.572095,0.00027618,7]
[401076750,1767906641629,-151.0,0.00027618,7]
[401076752,1767906641638,-1439.873322,0.00027618,7]
[401076754,1767906641647,-757.340513,0.00027618,7]
[401076756,1767906641656,-757.340513,0.00027618,7]
[401076758,1767906641666,-1222.595979,0.00027618,7]
[401076760,1767906641675,-757.340513,0.00027618,7]
[401076762,1767906641684,-1222.595979,0.00027618,7]
[401076764,1767906641693,-757.340513,0.00027618,7]
[401076766,1767906641703,-1222.595979,0.00027618,7]
[401076768,1767906641712,-1222.595979,0.00027618,7]
[401076770,1767906641722,-151.0,0.00027618,2]
[401076772,1767906641731,-151.0,0.00027618,2]
[401076774,1767906641740,-151.0,0.00027618,2]
[401076776,1767906641749,-151.0,0.00027618,2]
[401076778,1767906641758,-151.0,0.00027618,2]
[401076780,1767906641768,-151.0,0.00027618,2]
[401076783,1767906641778,-151.0,0.00027618,2]
[401076785,1767906641787,-151.0,0.00027618,2]
[401076787,1767906641796,-151.0,0.00027618,2]
[401076789,1767906641807,-30000.0,0.00027618,2]
[401076791,1767906641816,-151.0,0.00027618,2]
[401076793,1767906641825,-151.0,0.00027618,2]
[401076795,1767906641835,-151.0,0.00027618,2]
[401076797,1767906641844,-151.0,0.00027618,2]
[401076799,1767906641853,-151.0,0.00027618,2]
[401076801,1767906641863,-151.0,0.00027618,2]
[401076803,1767906641872,-151.0,0.00027618,2]
[401076805,1767906641881,-151.0,0.00027618,2]
[401076807,1767906641890,-151.0,0.00027618,2]
[401076809,1767906641900,-151.0,0.00027618,2]
[401076811,1767906641911,-151.0,0.00027618,2]
[401076813,1767906641920,-2030.296672,0.00027618,2]
[401076815,1767906641929,-2451.57074059,0.00027638,2]
[401076817,1767906641937,-2105.41764886,0.00027673,2]
[401076819,1767906641949,-455.55,0.000277,2]
[401076821,1767906641958,-2451.57074059,0.00027715,2]
[401076823,1767906641967,-2183.31810187,0.00027728,2]
[401076825,1767906641977,-900.0,0.00027774,7]
[401076830,1767906642015,-2264.10087164,0.00027783,2]
[401076832,1767906642024,-4049.61738907,0.00027836,2]
[401076834,1767906642033,-2347.87260389,0.00027838,2]
[401076836,1767906642042,-900.0,0.0002786,7]
[401076838,1767906642051,-2434.74389024,0.00027893,2]
[401076840,1767906642060,-900.0,0.00027895,7]
[401076842,1767906642069,-900.0,0.00027905,7]
[401076844,1767906642078,-500.0,0.00027913,7]
[401076846,1767906642087,-900.0,0.00027915,7]
[401076847,1767906642095,-600.0,0.00027945,5]
[401076849,1767906642104,-1000.0,0.00027945,5]
[401076851,1767906642114,-750.0,0.00027945,5]
[401076853,1767906642125,-250.0,0.00027945,5]
[401076855,1767906642134,-250.0,0.00027945,5]
[401076857,1767906642143,-1369.47464648,0.00027948,2]
[401076859,1767906642152,-900.0,0.00027975,7]
[401076861,1767906642161,-900.0,0.00027987,7]
[401076863,1767906642170,-1041.66666667,0.00028,7]
[401076865,1767906642179,-2451.57074059,0.0002801,2]
[401076868,1767906642188,-800.0,0.00028095,2]
[401076870,1767906642199,-900.0,0.00028106,7]
[401076872,1767906642208,-900.0,0.00028116,7]
[401076874,1767906642218,-3343.22777596,0.00028118,5]
[401076876,1767906642227,-4459.0,0.00028123,2]
[401076878,1767906642236,-790.46133503,0.00028145,7]
[401076880,1767906642246,-900.0,0.00028146,7]
[401076882,1767906642255,-151.0,0.00028166,7]
[401076884,1767906642264,-151.0,0.00028166,7]
[401076886,1767906642273,-151.0,0.00028166,7]
[401076888,1767906642283,-262.112916,0.00028166,7]
[401076890,1767906642293,-388.092813,0.00028166,7]
[401076892,1767906642303,-388.092813,0.00028166,7]
[401076894,1767906642312,-388.092813,0.00028166,7]
[401076896,1767906642323,-388.092813,0.00028166,7]
[401076898,1767906642332,-151.0,0.00028166,7]
[401076900,1767906642342,-151.0,0.00028166,7]
[401076902,1767906642351,-184.679172,0.00028166,7]
[401076904,1767906642361,-31110.0,0.00028166,2]
[401076906,1767906642370,-18863.66,0.000282,2]
[401076908,1767906642379,-2451.57074059,0.00028235,2]
[401076910,1767906642388,-800.0,0.00028245,2]
[401076913,1767906642400,-172.18674375,0.00028322,2]
[401076916,1767906642412,-500.0,0.00028327,7]
[401076919,1767906642421,-151.0,0.00028344,7]
[401076921,1767906642430,-247.71,0.00028344,7]
[401076923,1767906642439,-247.71,0.00028344,7]
[401076925,1767906642450,-247.71,0.00028344,7]
[401076927,1767906642459,-247.71,0.00028344,7]
[401076929,1767906642469,-151.0,0.00028344,7]
[401076931,1767906642478,-151.0,0.00028344,7]
[401076932,1767906642487,-221.765393,0.00028344,7]
[401076934,1767906642496,-151.0,0.00028344,7]
[401076936,1767906642506,-151.0,0.00028344,7]
[401076939,1767906642515,-419.6,0.00028475,3]
[401076941,1767906642525,-850.0,0.00028493,5]
[401076943,1767906642535,-1000.12098692,0.00028493,5]
[401076945,1767906642544,-845.80901206,0.00028493,5]
[401076946,1767906642554,-350.0,0.00028493,5]
[401076948,1767906642563,-350.0,0.00028493,5]
[401076950,1767906642572,-518.09,0.000285,7]
[401076952,1767906642582,-800.0,0.00028501,2]
[401076954,1767906642593,-800.0,0.00028547,2]
[401076956,1767906642602,-2451.57074059,0.00028577,2]
[401076958,1767906642612,-381.0,0.00028598,2]
[401076960,1767906642622,-1005.37,0.000286,14]
[401076962,1767906642631,-164.0,0.000286,7]
[401076964,1767906642640,-162.94,0.000286,7]
[401076966,1767906642651,-160.0,0.00028645,4]
[401076968,1767906642660,-32261.07,0.00028714,2]
[401076970,1767906642669,-674.95289818,0.00028725,22]
[401076972,1767906642679,-900.0,0.00028752,7]
[401076974,1767906642688,-1803.46,0.00028767,4]
[401076977,1767906642698,-170.598297,0.00028767,60]
[401076979,1767906642707,-900.0,0.00028789,7]
[401076980,1767906642716,-2451.57074059,0.00028801,2]
[401076982,1767906642725,-381.0,0.00028804,7]
[401076984,1767906642734,-4459.0,0.00028819,2]
[401076986,1767906642743,-155.0,0.00028822,31]
[401076988,1767906642752,-500.0,0.00028883,7]
[401076990,1767906642761,-4798.88647328,0.00028891,2]
[401076992,1767906642770,-5000.0,0.00028913,2]
[401076994,1767906642779,-381.0,0.00028961,2]
[401076996,1767906642788,-900.0,0.00028982,7]
[401076998,1767906642798,-2294.12698019,0.00028988,5]
[401077000,1767906642807,-455.55,0.00029,2]
[401077002,1767906642816,-1041.66666667,0.00029,7]
[401077005,1767906642827,-951.66050381,0.00029041,5]
[401077007,1767906642836,-450.0,0.00029041,5]
[401077008,1767906642845,-450.0,0.00029041,5]
[401077010,1767906642854,-658.15873545,0.00029057,2]
[401077013,1767906642864,-281.28077948,0.00029101,7]
[401077014,1767906642873,-381.0,0.00029197,2]
[401077016,1767906642883,-2451.57074059,0.00029231,2]
[401077019,1767906642892,-33454.72959,0.00029262,2]
[401077021,1767906642903,-7708.90119015,0.00029286,2]
[401077023,1767906642913,-167.4,0.000293,7]
[401077025,1767906642924,-2451.57074059,0.00029336,2]
[401077027,1767906642933,-4459.0,0.00029494,7]
[401077029,1767906642942,-18863.66,0.000295,2]
[401077031,1767906642951,-376.9815269,0.00029507,30]
[401077033,1767906642960,-376.9815269,0.00029507,30]
[401077035,1767906642969,-376.9815269,0.00029507,30]
[401077037,1767906642978,-376.9815269,0.00029507,30]
[401077039,1767906642987,-376.9815269,0.00029507,30]
[401077041,1767906642996,-376.9815269,0.00029507,30]
[401077043,1767906643006,-376.9815269,0.00029507,30]
[401077045,1767906643015,-376.9815269,0.00029507,30]
[401077047,1767906643024,-376.9815269,0.00029507,30]
[401077049,1767906643033,-376.9815269,0.00029507,30]
[401077051,1767906643042,-376.9815269,0.00029507,30]
[401077052,1767906643051,-535.2437032,0.00029507,30]
[401077055,1767906643060,-376.9815269,0.00029507,30]
[401077057,1767906643070,-500.0,0.00029559,7]
[401077059,1767906643079,-4461.0,0.00029559,2]
[401077060,1767906643088,-2495.04447908,0.00029579,5]
[401077062,1767906643098,-4311.8730863,0.00029579,5]
[401077064,1767906643107,-550.0,0.00029589,5]
[401077066,1767906643116,-550.0,0.00029589,5]
[401077069,1767906643125,-900.0,0.0002961,7]
[401077070,1767906643134,-674.95289818,0.00029615,24]
[401077072,1767906643144,-2451.57074059,0.00029622,2]
[401077074,1767906643153,-381.0,0.00029634,2]
[401077077,1767906643163,-381.0,0.00029642,2]
[401077079,1767906643172,-419.6,0.00029661,3]
[401077080,1767906643181,-900.0,0.00029684,7]
[401077083,1767906643191,-518.09,0.000297,7]
[401077085,1767906643200,-1259936.44559197,0.000297,2]
[401077087,1767906643210,-381.0,0.00029734,2]
[401077089,1767906643223,-207.33,0.000298,2]
[401077091,1767906643232,-3000.0,0.000298,2]
[401077093,1767906643242,-3000.0,0.0002981,2]
[401077095,1767906643251,-248.949077,0.0002981,7]
[401077097,1767906643260,-248.949077,0.0002981,7]
[401077099,1767906643269,-248.949077,0.0002981,7]
[401077101,1767906643278,-248.949077,0.0002981,7]
[401077103,1767906643288,-154.500951,0.0002981,7]
[401077105,1767906643297,-209.694433,0.0002981,7]
[401077107,1767906643306,-151.58214,0.0002981,7]
[401077109,1767906643315,-151.0,0.0002981,7]
[401077111,1767906643323,-151.0,0.0002981,7]
[401077113,1767906643332,-151.0,0.0002981,7]
[401077115,1767906643341,-151.0,0.0002981,7]
[401077117,1767906643351,-622.20825,0.0002981,7]
[401077119,1767906643360,-622.20825,0.0002981,7]
[401077121,1767906643368,-622.20825,0.0002981,7]
[401077124,1767906643378,-622.20825,0.0002981,7]
[401077126,1767906643398,-303.930909,0.0002981,7]
[401077128,1767906643411,-151.0,0.0002981,7]
[401077131,1767906643424,-303.930909,0.0002981,7]
[401077133,1767906643434,-303.930909,0.0002981,7]
[401077135,1767906643445,-303.930909,0.0002981,7]
[401077137,1767906643454,-151.0,0.0002981,7]
[401077139,1767906643463,-151.0,0.0002981,7]
[401077141,1767906643472,-151.0,0.0002981,7]
[401077143,1767906643483,-151.0,0.0002981,2]
[401077145,1767906643493,-151.0,0.0002981,7]
[401077147,1767906643503,-151.0,0.0002981,7]
[401077149,1767906643512,-179.188398,0.0002981,7]
[401077151,1767906643522,-151.0,0.0002981,7]
[401077153,1767906643531,-2391.210697,0.0002981,7]
[401077155,1767906643540,-2391.210697,0.0002981,7]
[401077157,1767906643550,-2391.210697,0.0002981,7]
[401077160,1767906643561,-151.0,0.0002981,7]
[401077162,1767906643570,-2391.210697,0.0002981,7]
[401077164,1767906643580,-151.0,0.0002981,7]
[401077166,1767906643590,-151.0,0.0002981,7]
[401077168,1767906643599,-151.0,0.0002981,7]
[401077170,1767906643609,-191.094302,0.0002981,7]
[401077172,1767906643619,-151.0,0.0002981,7]
[401077174,1767906643628,-151.0,0.0002981,7]
[401077176,1767906643638,-191.094302,0.0002981,7]
[401077178,1767906643648,-341.324064,0.0002981,7]
[401077180,1767906643658,-151.0,0.0002981,7]
[401077183,1767906643667,-151.0,0.0002981,7]
[401077185,1767906643677,-191.094302,0.0002981,7]
[401077187,1767906643686,-341.324064,0.0002981,7]
[401077189,1767906643696,-151.0,0.0002981,7]
[401077191,1767906643705,-191.094302,0.0002981,7]
[401077193,1767906643715,-182.749737,0.0002981,7]
[401077195,1767906643725,-341.324064,0.0002981,7]
[401077197,1767906643734,-182.749737,0.0002981,7]
[401077198,1767906643744,-151.0,0.0002981,7]
[401077201,1767906643753,-341.324064,0.0002981,7]
[401077203,1767906643763,-182.749737,0.0002981,7]
[401077205,1767906643772,-182.749737,0.0002981,7]
[401077207,1767906643781,-227.082154,0.0002981,7]
[401077209,1767906643791,-34692.55458483,0.0002981,2]
[401077211,1767906643800,-10000.0,0.00029818,2]
[401077213,1767906643809,-3000.0,0.0002982,2]
[401077215,1767906643819,-3000.0,0.0002983,2]
[401077217,1767906643828,-800.0,0.00029836,2]
[401077219,1767906643840,-1000.0,0.00029837,30]
[401077221,1767906643850,-1000.0,0.00029837,30]
[401077223,1767906643860,-1000.0,0.00029837,30]
[401077225,1767906643870,-715.0,0.00029837,30]
[401077227,1767906643880,-3000.0,0.0002984,2]
[401077230,1767906643890,-3000.0,0.0002985,2]
[401077232,1767906643903,-381.0,0.00029856,2]
[401077234,1767906643912,-3000.0,0.0002986,2]
[401077236,1767906643922,-800.0,0.00029867,2]
[401077238,1767906643932,-3000.0,0.0002987,2]
[401077240,1767906643942,-3000.0,0.0002988,2]
[401077242,1767906643951,-800.0,0.00029886,2]
[401077244,1767906643963,-800.0,0.00029886,2]
[401077246,1767906643973,-900.0,0.00029888,7]
[401077248,1767906643983,-800.0,0.00029889,2]
[401077250,1767906643993,-3000.0,0.0002989,2]
[401077253,1767906644003,-3000.0,0.000299,2]
[401077255,1767906644013,-1005.37,0.000299,14]
[401077257,1767906644023,-3000.0,0.0002991,2]
[401077259,1767906644032,-800.0,0.00029914,2]
[401077261,1767906644042,-347.0,0.00029918,7]
[401077263,1767906644051,-347.0,0.00029918,7]
[401077265,1767906644061,-166.0,0.00029918,7]
[401077267,1767906644071,-347.0,0.00029918,7]
[401077269,1767906644081,-166.0,0.00029918,7]
[401077271,1767906644091,-347.0,0.00029918,7]
[401077273,1767906644101,-166.0,0.00029918,7]
[401077275,1767906644110,-153.0,0.00029918,7]
[401077277,1767906644120,-347.0,0.00029918,7]
[401077279,1767906644129,-166.0,0.00029918,7]
[401077281,1767906644139,-153.0,0.00029918,7]
[401077283,1767906644148,-347.0,0.00029918,7]
[401077285,1767906644158,-166.0,0.00029918,7]
[401077287,1767906644168,-153.0,0.00029918,7]
[401077289,1767906644179,-347.0,0.00029918,7]
[401077290,1767906644188,-152.0,0.00029918,7]
[401077291,1767906644197,-166.0,0.00029918,7]
[401077292,1767906644207,-347.0,0.00029918,7]
[401077293,1767906644216,-152.0,0.00029918,7]
[401077294,1767906644225,-166.0,0.00029918,7]
[401077295,1767906644238,-347.0,0.00029918,7]
[401077296,1767906644248,-153.0,0.00029918,7]
[401077297,1767906644257,-347.0,0.00029918,7]
[401077298,1767906644267,-347.0,0.00029918,7]
[401077299,1767906644276,-163.0,0.00029918,7]
[401077300,1767906644286,-297.01652411,0.00029918,7]
[401077301,1767906644295,-152.0,0.00029918,7]
[401077302,1767906644305,-172.0,0.00029918,7]
[401077303,1767906644314,-347.0,0.00029918,7]
[401077304,1767906644324,-204.62288337,0.00029918,7]
[401077305,1767906644333,-152.0,0.00029918,7]
[401077306,1767906644343,-347.0,0.00029918,7]
[401077307,1767906644354,-152.0,0.00029918,7]
[401077308,1767906644363,-347.0,0.00029918,7]
[401077309,1767906644372,-152.0,0.00029918,7]
[401077310,1767906644382,-347.0,0.00029918,7]
[401077311,1767906644391,-289.301333,0.00029918,7]
[401077312,1767906644405,-347.0,0.00029918,7]
[401077314,1767906644415,-200.38257444,0.00029918,7]
[401077316,1767906644424,-152.0,0.00029918,7]
[401077318,1767906644435,-347.0,0.00029918,7]
[401077320,1767906644446,-152.0,0.00029918,7]
[401077322,1767906644455,-347.0,0.00029918,7]
[401077324,1767906644466,-347.0,0.00029918,7]
[401077326,1767906644476,-151.0,0.00029918,7]
[401077328,1767906644486,-152.0,0.00029918,7]
[401077330,1767906644496,-347.0,0.00029918,7]
[401077332,1767906644506,-151.0,0.00029918,7]
[401077335,1767906644516,-152.0,0.00029918,7]
[401077337,1767906644525,-151.0,0.00029918,7]
[401077339,1767906644535,-347.0,0.00029918,7]
[401077341,1767906644545,-152.0,0.00029918,7]
[401077342,1767906644554,-151.0,0.00029918,7]
[401077345,1767906644564,-347.0,0.00029918,7]
[401077347,1767906644573,-152.0,0.00029918,7]
[401077349,1767906644585,-151.0,0.00029918,7]
[401077351,1767906644595,-347.0,0.00029918,7]
[401077353,1767906644605,-152.0,0.00029918,7]
[401077355,1767906644614,-151.0,0.00029918,7]
[401077357,1767906644624,-152.0,0.00029918,7]
[401077359,1767906644634,-336.0,0.00029918,7]
[401077361,1767906644644,-151.0,0.00029918,7]
[401077363,1767906644653,-336.0,0.00029918,7]
[401077365,1767906644663,-151.0,0.00029918,7]
[401077367,1767906644672,-347.0,0.00029918,7]
[401077369,1767906644682,-336.0,0.00029918,7]
[401077371,1767906644691,-187.9115595,0.00029918,7]
[401077374,1767906644702,-284.0,0.00029918,7]
[401077376,1767906644711,-336.0,0.00029918,7]
[401077378,1767906644721,-336.0,0.00029918,7]
[401077380,1767906644731,-336.0,0.00029918,7]
[401077382,1767906644740,-347.0,0.00029918,7]
[401077384,1767906644750,-336.0,0.00029918,7]
[401077386,1767906644760,-347.0,0.00029918,7]
[401077388,1767906644770,-336.0,0.00029918,7]
[401077390,1767906644780,-347.0,0.00029918,7]
[401077392,1767906644789,-347.0,0.00029918,7]
[401077394,1767906644799,-336.0,0.00029918,7]
[401077396,1767906644808,-347.0,0.00029918,7]
[401077398,1767906644819,-336.0,0.00029918,7]
[401077400,1767906644829,-347.0,0.00029918,7]
[401077402,1767906644838,-336.0,0.00029918,7]
[401077404,1767906644848,-347.0,0.00029918,7]
[401077406,1767906644858,-336.0,0.00029918,7]
[401077408,1767906644868,-151.0,0.00029918,7]
[401077410,1767906644877,-347.0,0.00029918,7]
[401077412,1767906644887,-336.0,0.00029918,7]
[401077414,1767906644897,-151.0,0.00029918,7]
[401077416,1767906644906,-336.0,0.00029918,7]
[401077418,1767906644916,-347.0,0.00029918,7]
[401077421,1767906644926,-151.0,0.00029918,7]
[401077423,1767906644935,-336.0,0.00029918,7]
[401077425,1767906644944,-347.0,0.00029918,7]
[401077427,1767906644955,-336.0,0.00029918,7]
[401077429,1767906644968,-151.0,0.00029918,7]
[401077431,1767906644978,-347.0,0.00029918,7]
[401077433,1767906644988,-336.0,0.00029918,7]
[401077435,1767906644998,-151.0,0.00029918,7]
[401077437,1767906645008,-347.0,0.00029918,7]
[401077439,1767906645017,-151.0,0.00029918,7]
[401077441,1767906645027,-336.0,0.00029918,7]
[401077443,1767906645037,-347.0,0.00029918,7]
[401077445,1767906645047,-151.0,0.00029918,7]
[401077447,1767906645057,-336.0,0.00029918,7]
[401077449,1767906645067,-347.0,0.00029918,7]
[401077451,1767906645076,-151.0,0.00029918,7]
[401077453,1767906645087,-347.0,0.00029918,7]
[401077455,1767906645098,-336.0,0.00029918,7]
[401077457,1767906645108,-151.0,0.00029918,7]
[401077459,1767906645118,-336.0,0.00029918,7]
[401077462,1767906645128,-376.65305407,0.00029918,7]
[401077464,1767906645138,-336.0,0.00029918,7]
[401077466,1767906645148,-151.0,0.00029918,7]
[401077468,1767906645159,-151.0,0.00029918,7]
[401077470,1767906645168,-336.0,0.00029918,7]
[401077472,1767906645178,-151.0,0.00029918,7]
[401077474,1767906645188,-336.0,0.00029918,7]
[401077476,1767906645197,-151.0,0.00029918,7]
[401077478,1767906645206,-336.0,0.00029918,7]
[401077480,1767906645216,-336.0,0.00029918,7]
[401077482,1767906645226,-151.0,0.00029918,7]
[401077484,1767906645236,-151.0,0.00029918,7]
[401077486,1767906645245,-336.0,0.00029918,7]
[401077488,1767906645255,-151.0,0.00029918,7]
[401077491,1767906645273,-336.0,0.00029918,7]
[401077493,1767906645285,-151.0,0.00029918,7]
[401077496,1767906645296,-439.14173406,0.00029918,7]
[401077498,1767906645307,-151.0,0.00029918,7]
[401077500,1767906645317,-151.0,0.00029918,7]
[401077502,1767906645327,-151.0,0.00029918,7]
[401077504,1767906645337,-151.0,0.00029918,7]
[401077506,1767906645348,-151.0,0.00029918,7]
[401077509,1767906645359,-151.0,0.00029918,7]
[401077511,1767906645370,-151.0,0.00029918,7]
[401077513,1767906645380,-151.0,0.00029918,7]
[401077515,1767906645390,-151.0,0.00029918,7]
[401077517,1767906645401,-151.0,0.00029918,7]
[401077519,1767906645412,-151.0,0.00029918,7]
[401077521,1767906645423,-151.0,0.00029918,7]
[401077523,1767906645435,-151.0,0.00029918,7]
[401077525,1767906645446,-153.05483042,0.00029918,7]
[401077528,1767906645455,-3000.0,0.0002992,2]
[401077530,1767906645465,-800.0,0.00029926,2]
[401077532,1767906645478,-3000.0,0.0002993,2]
[401077534,1767906645488,-3000.0,0.0002994,2]
[401077536,1767906645498,-800.0,0.00029941,2]
[401077538,1767906645508,-800.0,0.00029945,2]
[401077540,1767906645518,-387.4761861,0.00029945,30]
[401077542,1767906645529,-153.0,0.00029945,30]
[401077544,1767906645539,-3000.0,0.0002995,2]
[401077546,1767906645548,-381.0,0.00029956,7]
[401077549,1767906645559,-3000.0,0.0002996,2]
[401077551,1767906645569,-3000.0,0.0002997,2]
[401077553,1767906645579,-800.0,0.00029972,2]
[401077555,1767906645589,-800.0,0.00029974,2]